fUST/lending_fUST_20250817
["ID","MTS","AMOUNT","RATE_DAILY","PERIOD"]
[379731916,1755390640859,-580.575816,0.000205,2]
[379731918,1755390640868,-431.9034523,0.000205,2]
[379731920,1755390640878,-431.9034523,0.000205,2]
[379731922,1755390640887,-580.575816,0.000205,2]
[379731924,1755390640897,-341.932746,0.000205,2]
[379731926,1755390640906,-579.4449159,0.000205,2]
[379731927,1755390640915,-171.85534778,0.00020568,2]
[379731929,1755390640925,-643.66,0.00020569,2]
[379731931,1755390640936,-480.0,0.00020569,2]
[379731933,1755390640945,-480.0,0.00020569,2]
[379731935,1755390640955,-1108.61,0.00020569,2]
[379731936,1755390640964,-480.0,0.00020569,2]
[379731938,1755390640979,-1592.77,0.00020569,2]
[379731939,1755390640988,-1135.77,0.00020569,2]
[379731940,1755390640997,-480.0,0.00020569,2]
[379731941,1755390641006,-480.0,0.00020569,2]
[379731942,1755390641016,-480.0,0.00020569,2]
[379731943,1755390641025,-3244.55,0.00020569,2]
[379731944,1755390641034,-512.66,0.00020569,2]
[379731945,1755390641043,-521.08,0.00020569,2]
[379731946,1755390641055,-594.11,0.00020569,2]
[379731947,1755390641065,-1484.69,0.00020569,2]
[379731948,1755390641074,-480.0,0.00020569,2]
[379731949,1755390641084,-151.0,0.0002057,2]
[379731951,1755390641094,-500.0,0.0002057,2]
[379731952,1755390641103,-480.0,0.0002057,2]
[379731954,1755390641113,-480.0,0.0002057,2]
[379731956,1755390641122,-706.63,0.0002057,2]
[379731958,1755390641132,-480.0,0.0002057,2]
[379731959,1755390641143,-480.0,0.0002057,2]
[379731961,1755390641152,-480.0,0.0002057,2]
[379731963,1755390641161,-576.24,0.0002057,2]
[379731965,1755390641171,-873.7,0.0002057,2]
[379731967,1755390641180,-526.51,0.0002057,2]
[379731968,1755390641189,-480.0,0.0002057,2]
[379731970,1755390641198,-542.37,0.0002057,2]
[379731972,1755390641207,-480.0,0.0002057,2]
[379731974,1755390641217,-480.0,0.0002057,2]
[379731976,1755390641226,-480.0,0.0002057,2]
[379731977,1755390641235,-480.0,0.0002057,2]
[379731979,1755390641244,-609.32,0.0002057,2]
[379731981,1755390641254,-480.0,0.0002057,2]
[379731983,1755390641263,-480.0,0.0002057,2]
[379731985,1755390641272,-480.0,0.0002057,2]
[379731986,1755390641281,-480.0,0.0002057,2]
[379731988,1755390641290,-539.3,0.0002057,2]
[379731990,1755390641299,-5482.88,0.0002057,2]
[379731992,1755390641308,-480.0,0.0002057,2]
[379731993,1755390641317,-573.94,0.0002057,2]
[379731995,1755390641326,-480.0,0.0002057,2]
[379731997,1755390641335,-480.0,0.0002057,2]
[379731999,1755390641345,-605.43,0.0002057,2]
[379732001,1755390641354,-979.69,0.0002057,2]
[379732003,1755390641363,-480.0,0.0002057,2]
[379732004,1755390641372,-480.0,0.0002057,2]
[379732006,1755390641382,-565.21,0.0002057,2]
[379732008,1755390641391,-480.0,0.0002057,2]
[379732010,1755390641400,-480.0,0.0002057,2]
[379732012,1755390641409,-591.13,0.0002057,2]
[379732013,1755390641418,-480.0,0.0002057,2]
[379732015,1755390641428,-480.0,0.0002057,2]
[379732017,1755390641438,-500.0,0.0002057,2]
[379732019,1755390641449,-480.0,0.0002057,2]
[379732021,1755390641459,-480.0,0.0002057,2]
[379732023,1755390641469,-2319.35460727,0.00020571,2]
[379732024,1755390641480,-1061.0,0.00020571,2]
[379732026,1755390641491,-151.0,0.00020571,2]
[379732028,1755390641501,-480.0,0.00020571,2]
[379732030,1755390641511,-525.66006992,0.00020571,2]
[379732032,1755390641520,-480.0,0.00020571,2]
[379732034,1755390641530,-480.0,0.00020571,2]
[379732036,1755390641539,-480.0,0.00020571,2]
[379732037,1755390641548,-480.0,0.00020571,2]
[379732039,1755390641557,-480.0,0.00020571,2]
[379732041,1755390641567,-480.0,0.00020571,2]
[379732042,1755390641576,-480.0,0.00020571,2]
[379732044,1755390641585,-480.0,0.00020571,2]
[379732046,1755390641594,-480.0,0.00020571,2]
[379732048,1755390641604,-699.1,0.00020571,2]
[379732050,1755390641614,-480.0,0.00020571,2]
[379732051,1755390641624,-480.0,0.00020571,2]
[379732053,1755390641635,-480.0,0.00020571,2]
[379732055,1755390641647,-480.0,0.00020571,2]
[379732057,1755390641657,-480.0,0.00020571,2]
[379732059,1755390641666,-480.0,0.00020572,2]
[379732061,1755390641675,-5666.93,0.00020572,2]
[379732062,1755390641683,-1084.56,0.00020572,2]
[379732064,1755390641693,-4335.7,0.00020572,2]
[379732066,1755390641702,-653.38,0.00020572,2]
[379732068,1755390641711,-658.07,0.00020572,2]
[379732070,1755390641721,-534.24,0.00020572,2]
[379732072,1755390641730,-480.0,0.00020572,2]
[379732073,1755390641739,-288.62184259,0.00020573,2]
[379732075,1755390641748,-569.7,0.00020573,2]
[379732077,1755390641757,-1705.49,0.00020573,2]
[379732079,1755390641767,-1611.84,0.00020573,2]
[379732081,1755390641776,-480.0,0.00020573,2]
[379732082,1755390641786,-1813.32,0.00020573,2]
[379732084,1755390641796,-519.39,0.00020573,2]
[379732086,1755390641806,-480.0,0.00020573,2]
[379732088,1755390641816,-30436.45477145,0.00020579,2]
[379732090,1755390641825,-160.0,0.00020657,2]
[379732092,1755390641836,-528.38334358,0.00020657,2]
[379732093,1755390641845,-843.58077381,0.00020657,2]
[379732095,1755390641854,-417.15472785,0.00020657,2]
[379732097,1755390641864,-160.0,0.00020657,2]
[379732099,1755390641885,-160.0,0.00020657,2]
[379732101,1755390641914,-462.1417622,0.00020657,2]
[379732102,1755390641926,-12681.6255076,0.00020657,2]
[379732104,1755390641938,-160.0,0.00020657,2]
[379732106,1755390641948,-232.11368524,0.00020657,2]
[379732107,1755390641958,-160.0,0.00020657,2]
[379732109,1755390641968,-215.68093138,0.00020657,2]
[379732111,1755390641984,-480.0,0.00020698,2]
[379732113,1755390641993,-763.98,0.00020698,2]
[379732115,1755390642002,-480.0,0.00020698,2]
[379732116,1755390642012,-480.0,0.00020698,2]
[379732118,1755390642021,-543.03,0.00020698,2]
[379732120,1755390642031,-480.0,0.00020698,2]
[379732122,1755390642040,-876.77,0.00020698,2]
[379732123,1755390642050,-480.0,0.00020698,2]
[379732125,1755390642059,-546.27,0.00020698,2]
[379732127,1755390642069,-652.85,0.00020698,2]
[379732129,1755390642079,-480.0,0.00020698,2]
[379732131,1755390642088,-621.70692371,0.00020698,2]
[379732133,1755390642097,-480.0,0.00020698,2]
[379732134,1755390642107,-610.20374075,0.00020698,2]
[379732136,1755390642116,-575.0,0.00020727,2]
[379732138,1755390642125,-194.76083359,0.00020747,2]
[379732140,1755390642136,-169.57207656,0.00020795,2]
[379732142,1755390642145,-643.66,0.00020843,2]
[379732144,1755390642155,-480.0,0.00020843,2]
[379732146,1755390642164,-480.0,0.00020843,2]
[379732147,1755390642173,-1108.61,0.00020843,2]
[379732149,1755390642183,-480.0,0.00020843,2]
[379732151,1755390642193,-1592.77,0.00020843,2]
[379732153,1755390642202,-1135.77,0.00020843,2]
[379732155,1755390642212,-480.0,0.00020843,2]
[379732157,1755390642228,-480.0,0.00020843,2]
[379732159,1755390642238,-480.0,0.00020843,2]
[379732161,1755390642247,-3244.55,0.00020843,2]
[379732162,1755390642256,-512.66,0.00020843,2]
[379732164,1755390642266,-521.08,0.00020843,2]
[379732166,1755390642275,-594.11,0.00020843,2]
[379732168,1755390642286,-1484.69,0.00020843,2]
[379732170,1755390642295,-480.0,0.00020843,2]
[379732172,1755390642305,-291.36802634,0.00020844,2]
[379732173,1755390642314,-455.03518094,0.00020844,2]
[379732175,1755390642324,-480.0,0.00020844,2]
[379732177,1755390642333,-480.0,0.00020844,2]
[379732179,1755390642342,-706.63,0.00020844,2]
[379732182,1755390642352,-480.0,0.00020844,2]
[379732185,1755390642361,-480.0,0.00020844,2]
[379732187,1755390642371,-480.0,0.00020844,2]
[379732190,1755390642380,-576.24,0.00020844,2]
[379732193,1755390642390,-873.7,0.00020844,2]
[379732196,1755390642400,-526.51,0.00020844,2]
[379732199,1755390642409,-480.0,0.00020844,2]
[379732202,1755390642418,-542.37,0.00020844,2]
[379732204,1755390642428,-480.0,0.00020844,2]
[379732207,1755390642439,-480.0,0.00020844,2]
[379732210,1755390642449,-480.0,0.00020844,2]
[379732212,1755390642460,-480.0,0.00020844,2]
[379732214,1755390642469,-609.32,0.00020844,2]
[379732216,1755390642478,-480.0,0.00020844,2]
[379732218,1755390642489,-480.0,0.00020844,2]
[379732221,1755390642498,-480.0,0.00020844,2]
[379732224,1755390642507,-539.3,0.00020844,2]
[379732225,1755390642515,-5482.88,0.00020844,2]
[379732228,1755390642526,-573.94,0.00020844,2]
[379732231,1755390642535,-480.0,0.00020844,2]
[379732233,1755390642545,-480.0,0.00020844,2]
[379732235,1755390642554,-605.43,0.00020844,2]
[379732236,1755390642563,-979.69,0.00020844,2]
[379732238,1755390642572,-480.0,0.00020844,2]
[379732240,1755390642582,-480.0,0.00020844,2]
[379732241,1755390642591,-565.21,0.00020844,2]
[379732243,1755390642600,-480.0,0.00020844,2]
[379732244,1755390642609,-480.0,0.00020844,2]
[379732246,1755390642619,-151.0,0.00020844,2]
[379732248,1755390642628,-480.0,0.00020844,2]
[379732250,1755390642638,-480.0,0.00020844,2]
[379732252,1755390642648,-591.13,0.00020844,2]
[379732253,1755390642658,-151.0,0.00020844,2]
[379732255,1755390642667,-779.446277,0.00020844,2]
[379732257,1755390642676,-368.52219163,0.00020844,2]
[379732259,1755390642686,-779.446277,0.00020844,2]
[379732260,1755390642696,-480.0,0.00020844,2]
[379732262,1755390642706,-1061.0,0.00020845,2]
[379732264,1755390642715,-151.0,0.00020845,2]
[379732266,1755390642724,-480.0,0.00020845,2]
[379732268,1755390642734,-343.47575867,0.00020845,2]
[379732270,1755390642743,-480.0,0.00020845,2]
[379732284,1755390642892,-480.0,0.00020845,2]
[379732286,1755390642902,-480.0,0.00020845,2]
[379732287,1755390642912,-480.0,0.00020845,2]
[379732289,1755390642921,-480.0,0.00020845,2]
[379732290,1755390642931,-480.0,0.00020845,2]
[379732291,1755390642940,-480.0,0.00020845,2]
[379732292,1755390642949,-480.0,0.00020845,2]
[379732293,1755390642959,-699.1,0.00020845,2]
[379732294,1755390642969,-480.0,0.00020845,2]
[379732295,1755390642981,-480.0,0.00020845,2]
[379732296,1755390642991,-370.16854512,0.00020845,2]
[379732298,1755390643000,-480.0,0.00020845,2]
[379732299,1755390643010,-480.0,0.00020845,2]
[379732300,1755390643019,-480.0,0.00020846,2]
[379732301,1755390643028,-5666.93,0.00020846,2]
[379732302,1755390643037,-1084.56,0.00020846,2]
[379732304,1755390643047,-4335.7,0.00020846,2]
[379732307,1755390643056,-653.38,0.00020846,2]
[379732309,1755390643068,-658.07,0.00020846,2]
[379732312,1755390643079,-534.24,0.00020846,2]
[379732313,1755390643088,-480.0,0.00020846,2]
[379732315,1755390643098,-569.7,0.00020847,2]
[379732316,1755390643106,-151.0,0.00020847,2]
[379732317,1755390643116,-1705.49,0.00020847,2]
[379732318,1755390643125,-151.0,0.00020847,2]
[379732319,1755390643135,-216.50396,0.00020847,2]
[379732320,1755390643144,-216.50396,0.00020847,2]
[379732321,1755390643153,-151.0,0.00020847,2]
[379732322,1755390643162,-1611.84,0.00020847,2]
[379732323,1755390643172,-480.0,0.00020847,2]
[379732324,1755390643181,-151.0,0.00020847,2]
[379732325,1755390643190,-151.0,0.00020847,2]
[379732326,1755390643200,-360.441492,0.00020847,2]
[379732327,1755390643209,-360.441492,0.00020847,2]
[379732328,1755390643218,-1813.32,0.00020847,2]
[379732329,1755390643227,-151.0,0.00020847,2]
[379732330,1755390643237,-151.0,0.00020847,2]
[379732331,1755390643246,-151.0,0.00020847,2]
[379732332,1755390643255,-151.0,0.00020847,2]
[379732333,1755390643264,-151.0,0.00020847,2]
[379732334,1755390643273,-151.0,0.00020847,2]
[379732335,1755390643285,-151.0,0.00020847,2]
[379732336,1755390643295,-519.39,0.00020847,2]
[379732337,1755390643304,-151.0,0.00020847,2]
[379732338,1755390643314,-151.0,0.00020847,2]
[379732339,1755390643332,-151.0,0.00020847,2]
[379732340,1755390643342,-151.0,0.00020847,2]
[379732341,1755390643351,-151.0,0.00020847,2]
[379732342,1755390643360,-480.0,0.00020847,2]
[379732343,1755390643369,-1000.0,0.0002085,2]
[379732344,1755390643378,-384.24,0.00020866,2]
[379732345,1755390643387,-351.0,0.0002088,2]
[379732346,1755390643397,-3639.77923143,0.00020907,2]
[379732347,1755390643405,-151.0,0.00020929,2]
[379732348,1755390643415,-575.0,0.00020935,3]
[379732349,1755390643425,-162.07389059,0.00020959,2]
[379732350,1755390643433,-480.0,0.00020972,2]
[379732351,1755390643443,-763.98,0.00020972,2]
[379732352,1755390643452,-480.0,0.00020972,2]
[379732353,1755390643461,-480.0,0.00020972,2]
[379732354,1755390643471,-543.03,0.00020972,2]
[379732355,1755390643480,-480.0,0.00020972,2]
[379732356,1755390643489,-876.77,0.00020972,2]
[379732357,1755390643498,-480.0,0.00020972,2]
[379732358,1755390643507,-546.27,0.00020972,2]
[379732359,1755390643516,-652.85,0.00020972,2]
[379732360,1755390643525,-480.0,0.00020972,2]
[379732361,1755390643534,-480.0,0.00020972,2]
[379732362,1755390643543,-600.0,0.00020974,2]
[379732363,1755390643553,-100000.0,0.0002099,2]
[379732364,1755390643562,-816.908349,0.0002099,2]
[379732365,1755390643571,-151.0,0.0002099,2]
[379732366,1755390643580,-151.0,0.0002099,2]
[379732367,1755390643589,-151.0,0.0002099,2]
[379732368,1755390643598,-151.0,0.0002099,2]
[379732369,1755390643607,-360.441492,0.0002099,2]
[379732370,1755390643616,-360.441492,0.0002099,2]
[379732371,1755390643625,-216.554284,0.0002099,2]
[379732372,1755390643634,-151.0,0.0002099,2]
[379732373,1755390643643,-151.0,0.0002099,2]
[379732374,1755390643652,-151.0,0.0002099,2]
[379732376,1755390643661,-151.0,0.0002099,2]
[379732377,1755390643670,-151.0,0.0002099,2]
[379732379,1755390643679,-151.0,0.0002099,2]
[379732381,1755390643692,-151.0,0.0002099,2]
[379732382,1755390643704,-151.0,0.0002099,2]
[379732384,1755390643713,-151.0,0.0002099,2]
[379732386,1755390643722,-779.446277,0.0002099,2]
[379732388,1755390643731,-779.446277,0.0002099,2]
[379732390,1755390643741,-3000.0,0.00021,2]
[379732392,1755390643750,-400.82151402,0.00021,2]
[379732394,1755390643759,-323.29795255,0.00021,2]
[379732396,1755390643769,-3000.0,0.0002101,2]
[379732398,1755390643778,-3000.0,0.0002102,2]
[379732400,1755390643787,-500.0,0.00021026,2]
[379732402,1755390643796,-4627.319031,0.0002103,2]
[379732403,1755390643805,-168.98892549,0.00021068,2]
[379732405,1755390643815,-169.57207656,0.00021068,2]
[379732407,1755390643824,-580.575816,0.00021082,2]
[379732409,1755390643834,-2152.0,0.00021103,2]
[379732411,1755390643844,-637.0,0.00021103,2]
[379732413,1755390643854,-160.7608968,0.00021104,2]
[379732415,1755390643863,-643.66,0.00021117,2]
[379732417,1755390643872,-480.0,0.00021117,2]
[379732419,1755390643883,-480.0,0.00021117,2]
[379732421,1755390643892,-1108.61,0.00021117,2]
[379732423,1755390643902,-480.0,0.00021117,2]
[379732425,1755390643911,-1592.77,0.00021117,2]
[379732427,1755390643921,-1135.77,0.00021117,2]
[379732429,1755390643930,-480.0,0.00021117,2]
[379732431,1755390643940,-480.0,0.00021117,2]
[379732433,1755390643949,-480.0,0.00021117,2]
[379732435,1755390643958,-3244.55,0.00021117,2]
[379732436,1755390643967,-512.66,0.00021117,2]
[379732438,1755390643982,-521.08,0.00021117,2]
[379732440,1755390643991,-594.11,0.00021117,2]
[379732442,1755390644001,-1484.69,0.00021117,2]
[379732444,1755390644011,-480.0,0.00021117,2]
[379732446,1755390644021,-364.93849029,0.00021118,2]
[379732448,1755390644031,-480.0,0.00021118,2]
[379732450,1755390644040,-706.63,0.00021118,2]
[379732452,1755390644049,-480.0,0.00021118,2]
[379732454,1755390644060,-480.0,0.00021118,2]
[379732456,1755390644069,-151.0,0.00021118,2]
[379732458,1755390644078,-480.0,0.00021118,2]
[379732460,1755390644088,-151.0,0.00021118,2]
[379732462,1755390644097,-576.24,0.00021118,2]
[379732464,1755390644106,-873.7,0.00021118,2]
[379732466,1755390644115,-526.51,0.00021118,2]
[379732467,1755390644125,-480.0,0.00021118,2]
[379732469,1755390644134,-542.37,0.00021118,2]
[379732471,1755390644143,-480.0,0.00021118,2]
[379732473,1755390644152,-480.0,0.00021118,2]
[379732475,1755390644161,-480.0,0.00021118,2]
[379732477,1755390644171,-480.0,0.00021118,2]
[379732479,1755390644180,-609.32,0.00021118,2]
[379732481,1755390644189,-480.0,0.00021118,2]
[379732483,1755390644198,-480.0,0.00021118,2]
[379732485,1755390644207,-480.0,0.00021118,2]
[379732487,1755390644216,-539.3,0.00021118,2]
[379732489,1755390644226,-5482.88,0.00021118,2]
[379732491,1755390644235,-573.94,0.00021118,2]
[379732493,1755390644245,-480.0,0.00021118,2]
[379732495,1755390644254,-480.0,0.00021118,2]
[379732497,1755390644263,-605.43,0.00021118,2]
[379732498,1755390644273,-979.69,0.00021118,2]
[379732500,1755390644282,-480.0,0.00021118,2]
[379732502,1755390644291,-480.0,0.00021118,2]
[379732504,1755390644300,-565.21,0.00021118,2]
[379732506,1755390644310,-480.0,0.00021118,2]
[379732508,1755390644319,-480.0,0.00021118,2]
[379732510,1755390644328,-480.0,0.00021118,2]
[379732512,1755390644338,-591.13,0.00021118,2]
[379732514,1755390644347,-500.0,0.00021118,2]
[379732516,1755390644356,-480.0,0.00021118,2]
[379732518,1755390644365,-480.0,0.00021118,2]
[379732520,1755390644375,-1061.0,0.00021119,2]
[379732522,1755390644384,-198.0,0.00021119,2]
[379732524,1755390644393,-608.52296938,0.00021119,2]
[379732526,1755390644403,-480.0,0.00021119,2]
[379732527,1755390644412,-480.0,0.00021119,2]
[379732529,1755390644422,-151.0,0.00021119,2]
[379732531,1755390644431,-480.0,0.00021119,2]
[379732533,1755390644440,-151.0,0.00021119,2]
[379732535,1755390644449,-541.408986,0.00021119,2]
[379732537,1755390644458,-541.408986,0.00021119,2]
[379732539,1755390644468,-480.0,0.00021119,2]
[379732541,1755390644477,-480.0,0.00021119,2]
[379732543,1755390644486,-480.0,0.00021119,2]
[379732545,1755390644495,-480.0,0.00021119,2]
[379732547,1755390644504,-480.0,0.00021119,2]
[379732549,1755390644514,-699.1,0.00021119,2]
[379732551,1755390644523,-480.0,0.00021119,2]
[379732553,1755390644535,-480.0,0.00021119,2]
[379732555,1755390644544,-480.0,0.00021119,2]
[379732557,1755390644553,-480.0,0.00021119,2]
[379732558,1755390644563,-480.0,0.0002112,2]
[379732560,1755390644573,-5666.93,0.0002112,2]
[379732562,1755390644583,-1084.56,0.0002112,2]
[379732564,1755390644592,-4335.7,0.0002112,2]
[379732566,1755390644602,-653.38,0.0002112,2]
[379732568,1755390644612,-658.07,0.0002112,2]
[379732570,1755390644621,-534.24,0.0002112,2]
[379732572,1755390644630,-480.0,0.0002112,2]
[379732574,1755390644640,-569.7,0.00021121,2]
[379732576,1755390644648,-151.0,0.00021121,2]
[379732578,1755390644658,-1705.49,0.00021121,2]
[379732580,1755390644667,-151.0,0.00021121,2]
[379732582,1755390644676,-216.50396,0.00021121,2]
[379732584,1755390644685,-216.50396,0.00021121,2]
[379732586,1755390644694,-1611.84,0.00021121,2]
[379732587,1755390644703,-480.0,0.00021121,2]
[379732589,1755390644713,-1813.32,0.00021121,2]
[379732591,1755390644722,-519.39,0.00021121,2]
[379732593,1755390644732,-480.0,0.00021121,2]
[379732595,1755390644741,-779.446277,0.00021121,2]
[379732597,1755390644751,-779.446277,0.00021121,2]
[379732599,1755390644760,-151.0,0.00021131,2]
[379732601,1755390644770,-278.979236,0.00021131,2]
[379732603,1755390644779,-575.0,0.00021142,3]
[379732605,1755390644788,-285.075608,0.00021142,2]
[379732607,1755390644797,-151.0,0.00021142,2]
[379732609,1755390644807,-240.27,0.00021147,2]
[379732611,1755390644816,-150.0,0.00021147,2]
[379732613,1755390644825,-150.028,0.00021147,2]
[379732614,1755390644834,-150.101,0.00021147,2]
[379732616,1755390644843,-150.0,0.00021147,2]
[379732618,1755390644853,-219.175,0.00021147,2]
[379732620,1755390644862,-500.80678866,0.00021182,2]
[379732622,1755390644872,-500.0,0.0002119,2]
[379732624,1755390644881,-500.0,0.0002119,2]
[379732626,1755390644890,-500.0,0.0002119,2]
[379732628,1755390644899,-500.0,0.0002119,2]
[379732630,1755390644909,-156.82471642,0.00021192,2]
[379732632,1755390644918,-500.0,0.00021192,2]
[379732634,1755390644927,-500.57295883,0.00021192,2]
[379732636,1755390644937,-500.0,0.00021192,2]
[379732638,1755390644946,-600.0,0.00021193,2]
[379732639,1755390644956,-19335.96035506,0.000212,2]
[379732653,1755390645087,-15218.97516651,0.000212,2]
[379732655,1755390645098,-1503.4924096,0.000212,2]
[379732657,1755390645110,-2245.6358324,0.000212,2]
[379732674,1755390645275,-609.92244077,0.00020023,2]
[379732676,1755390645286,-480.0,0.00020294,2]
[379732678,1755390645296,-480.0,0.00020568,2]
[379732680,1755390645306,-320.81321646,0.00020569,2]
[379732682,1755390645317,-159.18678354,0.00020569,2]
[379732685,1755390645326,-480.0,0.00020842,2]
[379732687,1755390645336,-480.0,0.00020843,2]
[379732689,1755390645344,-480.0,0.00021116,2]
[379732691,1755390645354,-480.0,0.00021117,2]
[379732693,1755390645363,-849.39991584,0.000212,2]
[379732695,1755390645378,-881.05,0.000212,2]
[379732698,1755390645390,-752.72382974,0.000212,2]
[379732707,1755390645473,-9212.76249085,0.000212,2]
[379732709,1755390645482,-151.0,0.000212,2]
[379732711,1755390645491,-151.0,0.000212,2]
[379732712,1755390645501,-360.441492,0.000212,2]
[379732714,1755390645511,-360.441492,0.000212,2]
[379732716,1755390645522,-151.0,0.000212,2]
[379732718,1755390645532,-151.0,0.000212,2]
[379732720,1755390645542,-151.0,0.000212,2]
[379732722,1755390645551,-151.0,0.000212,2]
[379732724,1755390645561,-151.0,0.000212,2]
[379732726,1755390645570,-151.0,0.000212,2]
[379732728,1755390645579,-500.0,0.00021205,2]
[379732730,1755390645588,-500.0,0.00021205,2]
[379732731,1755390645598,-500.0,0.00021205,2]
[379732733,1755390645607,-501.80056282,0.00021205,2]
[379732735,1755390645616,-500.0,0.00021205,2]
[379732737,1755390645626,-500.0,0.00021205,2]
[379732739,1755390645636,-502.684488,0.00021205,2]
[379732741,1755390645645,-452.03338951,0.00021205,2]
[379732743,1755390645654,-506.93401371,0.00021205,2]
[379732745,1755390645664,-160.0,0.00021208,2]
[379732747,1755390645673,-500.0,0.00021215,2]
[379732749,1755390645682,-151.0,0.00021223,2]
[379732751,1755390645691,-145.02725237,0.0002123,2]
[379732769,1755390645874,-354.97274763,0.0002123,2]
[379732771,1755390645884,-162.07389059,0.00021233,2]
[379732773,1755390645893,-480.0,0.00021246,2]
[379732775,1755390645903,-262.25929477,0.00021246,2]
[379732790,1755390646051,-501.72070523,0.00021246,2]
[379732792,1755390646061,-480.0,0.00021246,2]
[379732794,1755390646072,-480.0,0.00021246,2]
[379732796,1755390646082,-543.03,0.00021246,2]
[379732798,1755390646091,-480.0,0.00021246,2]
[379732800,1755390646100,-876.77,0.00021246,2]
[379732802,1755390646111,-480.0,0.00021246,2]
[379732804,1755390646120,-546.27,0.00021246,2]
[379732806,1755390646129,-652.85,0.00021246,2]
[379732808,1755390646139,-480.0,0.00021246,2]
[379732810,1755390646147,-480.0,0.00021246,2]
[379732812,1755390646157,-151.0,0.00021257,2]
[379732813,1755390646166,-501.57988511,0.00021292,2]
[379732815,1755390646175,-194.76083359,0.00021295,2]
[379732817,1755390646184,-645.0,0.000213,2]
[379732819,1755390646194,-500.0,0.00021317,2]
[379732821,1755390646203,-243.02036614,0.00021317,2]
[379732823,1755390646212,-168.0,0.00021325,2]
[379732825,1755390646220,-169.57207656,0.00021342,2]
[379732827,1755390646230,-548.61309167,0.0002135,3]
[379733100,1755390673479,160.0,0.0002,3]
[379733104,1755390739525,37.96263813,0.000199,2]
[379733105,1755390739548,3237.83867036,0.000199,2]
[379733106,1755390782609,326.53885494,0.00019021,2]
[379733107,1755390790685,500.0,0.00018834,2]
[379733108,1755390794283,500.0,0.0001993,2]
[379733109,1755390888083,349.72789173,0.00019922,2]
[379733110,1755390910300,3166.60793155,0.000199,2]
[379733111,1755390915106,-300.0,0.00020019,2]
[379733112,1755390915128,-300.0,0.00020019,2]
[379733113,1755390915151,-300.0,0.00020019,2]
[379733114,1755390915173,-300.0,0.00020019,2]
[379733115,1755390915196,-300.0,0.00020019,2]
[379733116,1755390915218,-1200.0,0.00020019,2]
[379733117,1755390915241,-1200.0,0.0002002,2]
[379733118,1755390915264,-480.0,0.0002002,2]
[379733119,1755390915287,-490.16,0.0002002,2]
[379733120,1755390915308,-480.0,0.0002002,2]
[379733121,1755390915330,-480.0,0.0002002,2]
[379733122,1755390915353,-691.67,0.0002002,2]
[379733123,1755390915377,-480.0,0.0002002,2]
[379733124,1755390915402,-480.0,0.0002002,2]
[379733125,1755390915425,-480.0,0.0002002,2]
[379733126,1755390915448,-1175.38,0.0002002,2]
[379733127,1755390915470,-480.0,0.0002002,2]